[Event "Early-Titled-Tuesday-Blitz-March-26-2024"]
[Site "Chess.com"]
[Date "2024.03.26"]
[Round "11"]
[White "artin10862"]
[Black "DavidGavrilescu18"]
[Result "0-1"]
[WhiteElo "2887"]
[BlackElo "2789"]
[TimeControl "180+1"]
[EndTime "10:02:08 PDT"]
[Termination "DavidGavrilescu18 won by resignation"]

1. e4 {[%clk 0:02:57.1]} 1... c5 {[%clk 0:02:57.2]} 2. Nf3 {[%clk 0:02:57.6]}
2... a6 {[%clk 0:02:43]} 3. c4 {[%clk 0:02:52.4]} 3... Nc6 {[%clk 0:02:36.5]} 4.
d4 {[%clk 0:02:50.7]} 4... cxd4 {[%clk 0:02:37.4]} 5. Nxd4 {[%clk 0:02:51.6]}
5... e5 {[%clk 0:02:37.9]} 6. Nc2 {[%clk 0:02:37.3]} 6... Bc5 {[%clk 0:02:35.9]}
7. Nc3 {[%clk 0:02:36.5]} 7... d6 {[%clk 0:02:35]} 8. Be2 {[%clk 0:02:33.4]}
8... Nge7 {[%clk 0:02:35.2]} 9. O-O {[%clk 0:02:33.1]} 9... O-O {[%clk
0:02:35.5]} 10. Be3 {[%clk 0:02:31.2]} 10... Bxe3 {[%clk 0:02:34.7]} 11. Nxe3
{[%clk 0:02:31.1]} 11... Be6 {[%clk 0:02:35]} 12. Nc2 {[%clk 0:02:26.5]} 12...
Rc8 {[%clk 0:02:34.5]} 13. b3 {[%clk 0:02:24.8]} 13... f5 {[%clk 0:02:34.4]} 14.
exf5 {[%clk 0:02:24]} 14... Nxf5 {[%clk 0:02:34.5]} 15. Bf3 {[%clk 0:02:23.6]}
15... Kh8 {[%clk 0:02:26.7]} 16. Bd5 {[%clk 0:02:20.8]} 16... Bd7 {[%clk
0:02:24.8]} 17. Ne4 {[%clk 0:02:20.6]} 17... b5 {[%clk 0:02:20.9]} 18. c5 {[%clk
0:02:07.5]} 18... dxc5 {[%clk 0:02:13.6]} 19. Nxc5 {[%clk 0:02:08.4]} 19... Ncd4
{[%clk 0:02:14]} 20. Nxd7 {[%clk 0:01:59.3]} 20... Qxd7 {[%clk 0:02:13.9]} 21.
Be4 {[%clk 0:01:59.9]} 21... Qf7 {[%clk 0:01:53.7]} 22. Nb4 {[%clk 0:01:54.2]}
22... Rcd8 {[%clk 0:01:46.3]} 23. Qg4 {[%clk 0:01:47.9]} 23... Rd6 {[%clk
0:01:45.3]} 24. Nd3 {[%clk 0:01:46.9]} 24... Rg6 {[%clk 0:01:41.4]} 25. Qh3
{[%clk 0:01:42.3]} 25... Rh6 {[%clk 0:01:37.2]} 26. Qg4 {[%clk 0:01:34.1]} 26...
Rh4 {[%clk 0:01:36.5]} 27. Bxf5 {[%clk 0:01:21.4]} 27... Rxg4 {[%clk 0:01:36.6]}
28. Bxg4 {[%clk 0:01:22.3]} 28... e4 {[%clk 0:01:35.1]} 29. Nc5 {[%clk
0:01:16.8]} 29... h5 {[%clk 0:01:31.8]} 30. Bd1 {[%clk 0:01:14.5]} 30... e3
{[%clk 0:01:31.3]} 0-1

[Event "Early-Titled-Tuesday-Blitz-March-26-2024"]
[Site "Chess.com"]
[Date "2024.03.26"]
[Round "11"]
[White "Lucky_Puncher"]
[Black "Kunalm64"]
[Result "1-0"]
[WhiteElo "2500"]
[BlackElo "2620"]
[TimeControl "180+1"]
[EndTime "10:02:35 PDT"]
[Termination "Lucky_Puncher won by resignation"]

1. d4 {[%clk 0:03:00.9]} 1... Nf6 {[%clk 0:02:59.6]} 2. c4 {[%clk 0:02:59.7]}
2... e6 {[%clk 0:02:59.9]} 3. Nc3 {[%clk 0:03:00]} 3... Bb4 {[%clk 0:03:00.2]}
4. e3 {[%clk 0:03:00.2]} 4... O-O {[%clk 0:02:59.2]} 5. Bd3 {[%clk 0:03:00.3]}
5... d5 {[%clk 0:02:59.4]} 6. a3 {[%clk 0:02:59.7]} 6... Bxc3+ {[%clk
0:02:56.8]} 7. bxc3 {[%clk 0:03:00.6]} 7... c5 {[%clk 0:02:57.4]} 8. Ne2 {[%clk
0:02:59.5]} 8... Nc6 {[%clk 0:02:56.5]} 9. cxd5 {[%clk 0:02:59.6]} 9... exd5
{[%clk 0:02:55.8]} 10. O-O {[%clk 0:03:00.3]} 10... b6 {[%clk 0:02:50.5]} 11. a4
{[%clk 0:02:57]} 11... Re8 {[%clk 0:02:49.5]} 12. Bb5 {[%clk 0:02:53.6]} 12...
Qc7 {[%clk 0:02:44.9]} 13. a5 {[%clk 0:02:50.6]} 13... Bd7 {[%clk 0:02:37.6]}
14. axb6 {[%clk 0:02:34.6]} 14... axb6 {[%clk 0:02:37.2]} 15. Ba3 {[%clk
0:02:33.7]} 15... c4 {[%clk 0:02:31]} 16. Nf4 {[%clk 0:02:18.8]} 16... Ra5
{[%clk 0:02:27.8]} 17. Bxc6 {[%clk 0:02:16.9]} 17... Qxc6 {[%clk 0:02:27.3]} 18.
Bb4 {[%clk 0:02:17.4]} 18... Rxa1 {[%clk 0:02:26.9]} 19. Qxa1 {[%clk 0:02:18.3]}
19... Ra8 {[%clk 0:02:26.7]} 20. Qb1 {[%clk 0:02:17.2]} 20... g6 {[%clk
0:02:21.7]} 21. Qb2 {[%clk 0:02:09.1]} 21... Kg7 {[%clk 0:01:59.4]} 22. Ra1
{[%clk 0:02:05.2]} 22... Bf5 {[%clk 0:01:56.9]} 23. h3 {[%clk 0:02:00.9]} 23...
g5 {[%clk 0:01:55.3]} 24. Ne2 {[%clk 0:01:58.9]} 24... h6 {[%clk 0:01:55.2]} 25.
Ng3 {[%clk 0:01:46.7]} 25... Bg6 {[%clk 0:01:55]} 26. Rxa8 {[%clk 0:01:40.3]}
26... Qxa8 {[%clk 0:01:54.5]} 27. Bd6 {[%clk 0:01:40.9]} 27... Qc6 {[%clk
0:01:42.2]} 28. Be5 {[%clk 0:01:39.1]} 28... Kg8 {[%clk 0:01:42.4]} 29. f4
{[%clk 0:01:36.7]} 29... Nd7 {[%clk 0:01:26.9]} 30. f5 {[%clk 0:01:33.3]} 30...
f6 {[%clk 0:01:23.9]} 31. fxg6 {[%clk 0:01:16.8]} 31... f5 {[%clk 0:01:23.8]}
32. Nxf5 {[%clk 0:01:12.3]} 1-0

[Event "Early-Titled-Tuesday-Blitz-March-26-2024"]
[Site "Chess.com"]
[Date "2024.03.26"]
[Round "11"]
[White "Mindhunter08"]
[Black "Cheer_Down"]
[Result "1-0"]
[WhiteElo "2645"]
[BlackElo "2491"]
[TimeControl "180+1"]
[EndTime "10:02:37 PDT"]
[Termination "Mindhunter08 won by resignation"]

1. e4 {[%clk 0:03:00.9]} 1... e5 {[%clk 0:03:00.1]} 2. Nf3 {[%clk 0:03:00.8]}
2... Nc6 {[%clk 0:03:00]} 3. Bc4 {[%clk 0:03:00.9]} 3... Nf6 {[%clk 0:02:59.7]}
4. d3 {[%clk 0:03:00.5]} 4... Bc5 {[%clk 0:02:58.7]} 5. c3 {[%clk 0:03:00.6]}
5... O-O {[%clk 0:02:53.4]} 6. Nbd2 {[%clk 0:03:00.2]} 6... d5 {[%clk
0:02:47.9]} 7. exd5 {[%clk 0:03:00.1]} 7... Nxd5 {[%clk 0:02:48.5]} 8. O-O
{[%clk 0:03:00.6]} 8... Nb6 {[%clk 0:02:46.3]} 9. Bb5 {[%clk 0:03:00.5]} 9...
Bf5 {[%clk 0:02:43.1]} 10. a4 {[%clk 0:02:50.9]} 10... Bxd3 {[%clk 0:02:37.2]}
11. Re1 {[%clk 0:02:35.5]} 11... a5 {[%clk 0:01:41.3]} 12. Nb3 {[%clk
0:02:31.9]} 12... e4 {[%clk 0:01:25.3]} 13. Bxd3 {[%clk 0:02:14]} 13... Bxf2+
{[%clk 0:01:22.5]} 14. Kxf2 {[%clk 0:02:12.3]} 14... exd3 {[%clk 0:01:23.4]} 15.
Be3 {[%clk 0:02:06.8]} 15... Nc4 {[%clk 0:01:23.3]} 16. Nc5 {[%clk 0:01:56.3]}
16... Nxb2 {[%clk 0:01:10.8]} 17. Qb3 {[%clk 0:01:53.6]} 17... d2 {[%clk
0:01:09.5]} 18. Bxd2 {[%clk 0:01:49.7]} 18... Nd3+ {[%clk 0:01:09.5]} 19. Nxd3
{[%clk 0:01:49.6]} 19... Qxd3 {[%clk 0:01:09.8]} 20. Be3 {[%clk 0:01:47]} 20...
b6 {[%clk 0:01:08.2]} 21. Rad1 {[%clk 0:01:46.1]} 21... Qg6 {[%clk 0:01:05.9]}
22. Kg1 {[%clk 0:01:37.9]} 22... h6 {[%clk 0:01:04.7]} 23. Qc4 {[%clk
0:01:29.8]} 23... Rad8 {[%clk 0:00:58.5]} 24. Bf4 {[%clk 0:01:25]} 24... Ne7
{[%clk 0:00:54.9]} 25. Rxd8 {[%clk 0:01:16.9]} 25... Rxd8 {[%clk 0:00:54.8]} 26.
Rxe7 {[%clk 0:01:14.8]} 26... Qb1+ {[%clk 0:00:54.9]} 27. Re1 {[%clk 0:01:12.4]}
1-0

[Event "Early-Titled-Tuesday-Blitz-March-26-2024"]
[Site "Chess.com"]
[Date "2024.03.26"]
[Round "11"]
[White "FREDERICKtheMATE"]
[Black "Viktor_Poddubnyi"]
[Result "1-0"]
[WhiteElo "2676"]
[BlackElo "2312"]
[TimeControl "180+1"]
[EndTime "10:02:52 PDT"]
[Termination "FREDERICKtheMATE won by resignation"]

1. Nf3 {[%clk 0:03:00.9]} 1... g6 {[%clk 0:03:00.3]} 2. e4 {[%clk 0:03:00.2]}
2... Bg7 {[%clk 0:03:00.8]} 3. d4 {[%clk 0:03:00.2]} 3... d6 {[%clk 0:03:00.1]}
4. c4 {[%clk 0:02:57.9]} 4... Bg4 {[%clk 0:02:59.1]} 5. Be2 {[%clk 0:02:57.6]}
5... Nc6 {[%clk 0:02:58.5]} 6. Be3 {[%clk 0:02:56]} 6... e5 {[%clk 0:02:57.8]}
7. d5 {[%clk 0:02:55.5]} 7... Bxf3 {[%clk 0:02:58.2]} 8. Bxf3 {[%clk 0:02:53.5]}
8... Nd4 {[%clk 0:02:58.7]} 9. g3 {[%clk 0:02:52.3]} 9... h5 {[%clk 0:02:30.5]}
10. h4 {[%clk 0:02:49.4]} 10... Nf6 {[%clk 0:02:12.4]} 11. Nc3 {[%clk
0:02:47.2]} 11... O-O {[%clk 0:02:11.3]} 12. Bg5 {[%clk 0:02:32.2]} 12... c5
{[%clk 0:01:57.5]} 13. O-O {[%clk 0:02:28.2]} 13... a6 {[%clk 0:01:57.1]} 14. a4
{[%clk 0:02:26.8]} 14... b6 {[%clk 0:01:47.1]} 15. Kg2 {[%clk 0:02:25.3]} 15...
Qd7 {[%clk 0:01:39.8]} 16. Be2 {[%clk 0:02:24.9]} 16... Rae8 {[%clk 0:01:23.8]}
17. Qd3 {[%clk 0:02:20.6]} 17... Rb8 {[%clk 0:00:56.6]} 18. Rh1 {[%clk
0:02:17.2]} 18... Kh7 {[%clk 0:00:39.7]} 19. Raf1 {[%clk 0:02:16]} 19... Ng4
{[%clk 0:00:30.8]} 20. f3 {[%clk 0:02:11.8]} 20... Nh6 {[%clk 0:00:30.3]} 21.
Bd1 {[%clk 0:02:11.6]} 21... Rbe8 {[%clk 0:00:27.8]} 22. g4 {[%clk 0:02:07.2]}
22... hxg4 {[%clk 0:00:23.5]} 23. fxg4 {[%clk 0:02:07.1]} 23... Nxg4 {[%clk
0:00:21.9]} 24. h5 {[%clk 0:02:05.8]} 24... gxh5 {[%clk 0:00:14.9]} 25. Rxh5+
{[%clk 0:02:03.2]} 25... Kg6 {[%clk 0:00:15]} 26. Qh3 {[%clk 0:02:03]} 26... Nf6
{[%clk 0:00:07.1]} 27. Rh6+ {[%clk 0:01:58.1]} 1-0

[Event "Early-Titled-Tuesday-Blitz-March-26-2024"]
[Site "Chess.com"]
[Date "2024.03.26"]
[Round "11"]
[White "mertfelin"]
[Black "Golubovsky"]
[Result "0-1"]
[WhiteElo "2397"]
[BlackElo "2490"]
[TimeControl "180+1"]
[EndTime "10:02:59 PDT"]
[Termination "Golubovsky won by checkmate"]

1. e4 {[%clk 0:03:00.4]} 1... c5 {[%clk 0:02:59.6]} 2. Nf3 {[%clk 0:03:00.8]}
2... d6 {[%clk 0:03:00.2]} 3. d4 {[%clk 0:02:58.2]} 3... cxd4 {[%clk 0:03:00.3]}
4. Nxd4 {[%clk 0:02:58.8]} 4... Nf6 {[%clk 0:03:00.9]} 5. Nc3 {[%clk 0:02:59.5]}
5... a6 {[%clk 0:03:01.3]} 6. h3 {[%clk 0:03:00.2]} 6... e5 {[%clk 0:03:01.1]}
7. Nf3 {[%clk 0:03:00.8]} 7... Nbd7 {[%clk 0:02:54.2]} 8. Be3 {[%clk 0:02:46.7]}
8... b5 {[%clk 0:02:53.7]} 9. g4 {[%clk 0:02:41.4]} 9... Bb7 {[%clk 0:02:53.5]}
10. g5 {[%clk 0:02:39.8]} 10... Nxe4 {[%clk 0:02:49]} 11. Nxe4 {[%clk
0:02:37.1]} 11... Bxe4 {[%clk 0:02:48.7]} 12. Bg2 {[%clk 0:02:37.7]} 12... Be7
{[%clk 0:02:37.5]} 13. O-O {[%clk 0:02:38]} 13... d5 {[%clk 0:02:34.6]} 14. c3
{[%clk 0:02:37.7]} 14... O-O {[%clk 0:02:29.7]} 15. Qe2 {[%clk 0:02:35.6]} 15...
Qc7 {[%clk 0:02:04.1]} 16. a3 {[%clk 0:02:21.5]} 16... Nb6 {[%clk 0:01:55.6]}
17. Rad1 {[%clk 0:02:21]} 17... Nc4 {[%clk 0:01:54.6]} 18. Bc1 {[%clk
0:02:21.6]} 18... Rad8 {[%clk 0:01:49.8]} 19. Nh4 {[%clk 0:02:21.7]} 19... Bxg2
{[%clk 0:01:47.8]} 20. Nxg2 {[%clk 0:02:15.9]} 20... e4 {[%clk 0:01:43]} 21.
Rfe1 {[%clk 0:01:52]} 21... Qe5 {[%clk 0:01:40]} 22. Qg4 {[%clk 0:01:50.4]}
22... f5 {[%clk 0:01:25.5]} 23. Qh4 {[%clk 0:01:37.1]} 23... d4 {[%clk
0:01:17.3]} 24. Bf4 {[%clk 0:01:32.5]} 24... Qc5 {[%clk 0:01:17.1]} 25. cxd4
{[%clk 0:01:32.3]} 25... Rxd4 {[%clk 0:01:18]} 26. Rc1 {[%clk 0:01:23.3]} 26...
Qd5 {[%clk 0:01:10.1]} 27. Ne3 {[%clk 0:01:20.5]} 27... Nxe3 {[%clk 0:01:04.3]}
28. Bxe3 {[%clk 0:01:21.1]} 28... Rd3 {[%clk 0:01:04.5]} 29. Rc7 {[%clk
0:01:19.3]} 29... Bd6 {[%clk 0:01:02.9]} 30. Ra7 {[%clk 0:01:16.2]} 30... f4
{[%clk 0:01:02]} 31. g6 {[%clk 0:01:15.7]} 31... hxg6 {[%clk 0:00:58]} 32. Bb6
{[%clk 0:01:08.2]} 32... Rd1 {[%clk 0:00:50.4]} 33. Rxd1 {[%clk 0:01:07.6]}
33... Qxd1+ {[%clk 0:00:51.3]} 34. Kg2 {[%clk 0:01:07.8]} 34... f3# {[%clk
0:00:50.8]} 0-1

[Event "Early-Titled-Tuesday-Blitz-March-26-2024"]
[Site "Chess.com"]
[Date "2024.03.26"]
[Round "11"]
[White "GeorgiosSouleidis"]
[Black "CFalcons8"]
[Result "1-0"]
[WhiteElo "2578"]
[BlackElo "2395"]
[TimeControl "180+1"]
[EndTime "10:03:00 PDT"]
[Termination "GeorgiosSouleidis won by resignation"]

1. e4 {[%clk 0:02:58.6]} 1... e5 {[%clk 0:02:59.8]} 2. Nc3 {[%clk 0:02:58.6]}
2... Nf6 {[%clk 0:02:59.9]} 3. d4 {[%clk 0:02:58.9]} 3... exd4 {[%clk
0:02:59.8]} 4. Qxd4 {[%clk 0:02:59.8]} 4... Nc6 {[%clk 0:02:59.8]} 5. Qd3 {[%clk
0:03:00.3]} 5... Bb4 {[%clk 0:02:59.2]} 6. Bd2 {[%clk 0:03:00.4]} 6... O-O
{[%clk 0:02:58.7]} 7. O-O-O {[%clk 0:03:00.6]} 7... d6 {[%clk 0:02:55.9]} 8. Qg3
{[%clk 0:02:59.7]} 8... Ne5 {[%clk 0:02:50.5]} 9. f3 {[%clk 0:02:55.1]} 9... a6
{[%clk 0:02:42.4]} 10. h4 {[%clk 0:02:55.2]} 10... Kh8 {[%clk 0:02:40.1]} 11. h5
{[%clk 0:02:55.4]} 11... b5 {[%clk 0:02:30.2]} 12. h6 {[%clk 0:02:55.5]} 12...
g6 {[%clk 0:02:27.1]} 13. Nge2 {[%clk 0:02:51.2]} 13... Rg8 {[%clk 0:02:22.8]}
14. Bg5 {[%clk 0:02:50.2]} 14... Be6 {[%clk 0:02:17.4]} 15. Qh4 {[%clk
0:02:49.5]} 15... Ned7 {[%clk 0:02:17.1]} 16. f4 {[%clk 0:02:34.3]} 16... Bc5
{[%clk 0:02:15.7]} 17. e5 {[%clk 0:02:17]} 17... Be3+ {[%clk 0:02:10.4]} 18. Kb1
{[%clk 0:02:16.9]} 18... dxe5 {[%clk 0:02:08.4]} 19. Rxd7 {[%clk 0:02:04.6]}
19... Nxd7 {[%clk 0:01:59.1]} 20. Bxd8 {[%clk 0:02:04]} 20... Raxd8 {[%clk
0:02:00]} 21. fxe5 {[%clk 0:01:56.6]} 21... g5 {[%clk 0:01:56.1]} 22. Qe4 {[%clk
0:01:51.6]} 22... Bc5 {[%clk 0:01:53.3]} 23. Ng3 {[%clk 0:01:35.2]} 23... Nf8
{[%clk 0:01:51.8]} 24. Bd3 {[%clk 0:01:24.9]} 24... Ng6 {[%clk 0:01:45.2]} 25.
a3 {[%clk 0:01:19.7]} 25... Rd4 {[%clk 0:01:44.3]} 26. Qc6 {[%clk 0:01:17.2]}
26... Bb6 {[%clk 0:01:41.7]} 27. Bxg6 {[%clk 0:00:55.9]} 27... Rxg6 {[%clk
0:01:40.2]} 28. Qe8+ {[%clk 0:00:53.7]} 28... Rg8 {[%clk 0:01:37.2]} 29. Qe7
{[%clk 0:00:54.3]} 29... Rg6 {[%clk 0:01:32.6]} 30. Rd1 {[%clk 0:00:42]} 30...
Rxd1+ {[%clk 0:01:31.1]} 31. Nxd1 {[%clk 0:00:42.9]} 31... Bg4 {[%clk
0:01:22.4]} 32. Qd8+ {[%clk 0:00:41.1]} 1-0

[Event "Early-Titled-Tuesday-Blitz-March-26-2024"]
[Site "Chess.com"]
[Date "2024.03.26"]
[Round "11"]
[White "MyDream003"]
[Black "hakanazeri2"]
[Result "1-0"]
[WhiteElo "2792"]
[BlackElo "2593"]
[TimeControl "180+1"]
[EndTime "10:03:10 PDT"]
[Termination "MyDream003 won by checkmate"]

1. Nf3 {[%clk 0:03:00.9]} 1... Nf6 {[%clk 0:03:00.3]} 2. b3 {[%clk 0:02:58.3]}
2... g6 {[%clk 0:02:58.9]} 3. Bb2 {[%clk 0:02:58.3]} 3... Bg7 {[%clk 0:02:59.5]}
4. d4 {[%clk 0:02:59.1]} 4... O-O {[%clk 0:02:59.9]} 5. e3 {[%clk 0:02:59.9]}
5... d6 {[%clk 0:02:59.5]} 6. Be2 {[%clk 0:03:00.6]} 6... c6 {[%clk 0:03:00.2]}
7. O-O {[%clk 0:03:00.9]} 7... Nbd7 {[%clk 0:03:00.4]} 8. c4 {[%clk 0:03:01.3]}
8... Qc7 {[%clk 0:03:01.1]} 9. Nc3 {[%clk 0:03:01.8]} 9... e5 {[%clk 0:03:01.8]}
10. dxe5 {[%clk 0:03:00.4]} 10... dxe5 {[%clk 0:03:02.4]} 11. Qc2 {[%clk
0:03:01.1]} 11... Re8 {[%clk 0:02:57.5]} 12. Rad1 {[%clk 0:02:53.5]} 12... a5
{[%clk 0:02:50.4]} 13. Ng5 {[%clk 0:02:51.3]} 13... Nc5 {[%clk 0:02:43.1]} 14.
Ba3 {[%clk 0:02:51.6]} 14... b6 {[%clk 0:02:24]} 15. Bxc5 {[%clk 0:02:46.9]}
15... bxc5 {[%clk 0:02:24.9]} 16. Nge4 {[%clk 0:02:46.3]} 16... Bf5 {[%clk
0:02:15.6]} 17. Nxf6+ {[%clk 0:02:38.2]} 17... Bxf6 {[%clk 0:02:15.1]} 18. Bd3
{[%clk 0:02:34.4]} 18... Bxd3 {[%clk 0:02:09.8]} 19. Qxd3 {[%clk 0:02:34.1]}
19... Rad8 {[%clk 0:02:08.6]} 20. Qc2 {[%clk 0:02:34.2]} 20... Bg7 {[%clk
0:02:06.1]} 21. Rxd8 {[%clk 0:02:21]} 21... Rxd8 {[%clk 0:02:06]} 22. Rd1 {[%clk
0:02:21.7]} 22... f5 {[%clk 0:02:05.9]} 23. h3 {[%clk 0:02:09.9]} 23... e4
{[%clk 0:02:04.4]} 24. Na4 {[%clk 0:02:08.6]} 24... Rxd1+ {[%clk 0:01:36.9]} 25.
Qxd1 {[%clk 0:02:09.5]} 25... Qe5 {[%clk 0:01:37.6]} 26. g3 {[%clk 0:02:02.8]}
26... h5 {[%clk 0:01:36.5]} 27. h4 {[%clk 0:02:00.4]} 27... Kh7 {[%clk 0:01:29]}
28. Kg2 {[%clk 0:01:59.6]} 28... Kh6 {[%clk 0:01:27.8]} 29. Qd7 {[%clk
0:01:44.5]} 29... f4 {[%clk 0:00:58.2]} 30. gxf4 {[%clk 0:01:37]} 30... Qf6
{[%clk 0:00:53.3]} 31. Nxc5 {[%clk 0:01:35.5]} 31... Qxh4 {[%clk 0:00:51.4]} 32.
Nxe4 {[%clk 0:01:35.9]} 32... a4 {[%clk 0:00:42]} 33. bxa4 {[%clk 0:01:34.7]}
33... g5 {[%clk 0:00:30.4]} 34. Nxg5 {[%clk 0:01:33.3]} 34... c5 {[%clk
0:00:26.3]} 35. a5 {[%clk 0:01:33.6]} 35... Bf6 {[%clk 0:00:26.3]} 36. Qh7#
{[%clk 0:01:33.1]} 1-0

[Event "Early-Titled-Tuesday-Blitz-March-26-2024"]
[Site "Chess.com"]
[Date "2024.03.26"]
[Round "11"]
[White "Dixit_Nikhil"]
[Black "AA95"]
[Result "0-1"]
[WhiteElo "2627"]
[BlackElo "2497"]
[TimeControl "180+1"]
[EndTime "10:03:22 PDT"]
[Termination "AA95 won by checkmate"]

1. e4 {[%clk 0:03:00.9]} 1... c5 {[%clk 0:02:57.8]} 2. Nf3 {[%clk 0:03:01.5]}
2... d6 {[%clk 0:02:57.3]} 3. d4 {[%clk 0:03:02.1]} 3... cxd4 {[%clk 0:02:57.8]}
4. Nxd4 {[%clk 0:03:02.8]} 4... Nf6 {[%clk 0:02:58.5]} 5. Nc3 {[%clk 0:03:03.5]}
5... a6 {[%clk 0:02:59.2]} 6. h3 {[%clk 0:03:04.1]} 6... h5 {[%clk 0:02:58.4]}
7. Bg5 {[%clk 0:03:01.7]} 7... e5 {[%clk 0:02:57]} 8. Nb3 {[%clk 0:03:01.6]}
8... Be7 {[%clk 0:02:57.3]} 9. Qf3 {[%clk 0:03:00.5]} 9... Be6 {[%clk
0:02:55.7]} 10. O-O-O {[%clk 0:03:00.5]} 10... Nbd7 {[%clk 0:02:45.3]} 11. Bd3
{[%clk 0:02:56.9]} 11... Qc7 {[%clk 0:02:43]} 12. Kb1 {[%clk 0:02:56.8]} 12...
O-O-O {[%clk 0:02:40.6]} 13. Bxf6 {[%clk 0:02:47.4]} 13... Nxf6 {[%clk
0:02:39.8]} 14. Nd5 {[%clk 0:02:47.5]} 14... Bxd5 {[%clk 0:02:38.9]} 15. exd5
{[%clk 0:02:47.7]} 15... g6 {[%clk 0:02:38.5]} 16. c4 {[%clk 0:02:47.6]} 16...
Kb8 {[%clk 0:02:38.6]} 17. Rc1 {[%clk 0:02:45.9]} 17... b6 {[%clk 0:02:38.6]}
18. c5 {[%clk 0:02:45.2]} 18... dxc5 {[%clk 0:02:33.1]} 19. Bxa6 {[%clk
0:02:45.1]} 19... e4 {[%clk 0:02:33.3]} 20. Qe2 {[%clk 0:02:41.5]} 20... Rxd5
{[%clk 0:02:31.1]} 21. a4 {[%clk 0:02:36.9]} 21... Rhd8 {[%clk 0:01:51.5]} 22.
Bc4 {[%clk 0:02:29.8]} 22... Rg5 {[%clk 0:01:43.5]} 23. Bxf7 {[%clk 0:02:22.9]}
23... Bd6 {[%clk 0:01:36.8]} 24. Be6 {[%clk 0:02:17.8]} 24... Rxg2 {[%clk
0:01:35]} 25. a5 {[%clk 0:02:16.5]} 25... Bf4 {[%clk 0:01:17.7]} 26. axb6 {[%clk
0:02:08.5]} 26... Qxb6 {[%clk 0:01:01.5]} 27. Nxc5 {[%clk 0:02:08.6]} 27... Rd2
{[%clk 0:00:52.9]} 28. Na4 {[%clk 0:01:45.7]} 28... Rxe2 {[%clk 0:00:40.4]} 29.
Nxb6 {[%clk 0:01:44]} 29... Bxc1 {[%clk 0:00:37.3]} 30. Rxc1 {[%clk 0:01:41.4]}
30... Rgxf2 {[%clk 0:00:36.5]} 31. Na4 {[%clk 0:01:41.5]} 31... Rd2 {[%clk
0:00:28.1]} 32. Rc8+ {[%clk 0:01:38.2]} 32... Kb7 {[%clk 0:00:25.5]} 33. Nc5+
{[%clk 0:01:37.4]} 33... Ka7 {[%clk 0:00:23.6]} 34. b4 {[%clk 0:01:19.4]} 34...
Rd1# {[%clk 0:00:20.8]} 0-1

[Event "Early-Titled-Tuesday-Blitz-March-26-2024"]
[Site "Chess.com"]
[Date "2024.03.26"]
[Round "11"]
[White "Flaccidmoves"]
[Black "HanSchut"]
[Result "1/2-1/2"]
[WhiteElo "2439"]
[BlackElo "2283"]
[TimeControl "180+1"]
[EndTime "10:03:24 PDT"]
[Termination "Game drawn by repetition"]

1. c4 {[%clk 0:03:00.9]} 1... Nf6 {[%clk 0:02:58.8]} 2. Nc3 {[%clk 0:02:59.1]}
2... d5 {[%clk 0:02:58.8]} 3. cxd5 {[%clk 0:02:58.5]} 3... Nxd5 {[%clk
0:02:59.7]} 4. Nf3 {[%clk 0:02:55.2]} 4... c5 {[%clk 0:02:59.7]} 5. e3 {[%clk
0:02:44.6]} 5... Nc6 {[%clk 0:02:59.5]} 6. Bb5 {[%clk 0:02:42.9]} 6... Nb4
{[%clk 0:02:26.9]} 7. a3 {[%clk 0:02:41.3]} 7... Nd3+ {[%clk 0:02:23.1]} 8. Bxd3
{[%clk 0:02:41.9]} 8... Qxd3 {[%clk 0:02:22.5]} 9. Qe2 {[%clk 0:02:40.7]} 9...
Qxe2+ {[%clk 0:02:20.7]} 10. Kxe2 {[%clk 0:02:41.6]} 10... Bg4 {[%clk
0:02:13.4]} 11. h3 {[%clk 0:02:40.1]} 11... Bxf3+ {[%clk 0:02:12.2]} 12. gxf3
{[%clk 0:02:38.5]} 12... O-O-O {[%clk 0:02:06.5]} 13. b3 {[%clk 0:02:36.2]}
13... e5 {[%clk 0:02:06.4]} 14. Ne4 {[%clk 0:02:26.2]} 14... Be7 {[%clk
0:01:55.9]} 15. h4 {[%clk 0:02:20.5]} 15... h6 {[%clk 0:01:55]} 16. h5 {[%clk
0:02:19.7]} 16... f5 {[%clk 0:01:54.2]} 17. Nc3 {[%clk 0:02:12.3]} 17... Bf6
{[%clk 0:01:49.7]} 18. Bb2 {[%clk 0:02:09.9]} 18... Rhe8 {[%clk 0:01:49.7]} 19.
Rac1 {[%clk 0:02:05.8]} 19... Nd4+ {[%clk 0:01:40.9]} 20. exd4 {[%clk
0:02:02.4]} 20... exd4+ {[%clk 0:01:40.1]} 21. Kf1 {[%clk 0:02:02.4]} 21... dxc3
{[%clk 0:01:39.9]} 22. Bxc3 {[%clk 0:02:02.1]} 22... Bxc3 {[%clk 0:01:34.5]} 23.
Rxc3 {[%clk 0:02:01.7]} 23... Rxd2 {[%clk 0:01:29.2]} 24. Rxc5+ {[%clk
0:02:01.2]} 24... Kd7 {[%clk 0:01:20.7]} 25. Kg2 {[%clk 0:01:42.8]} 25... Ree2
{[%clk 0:01:05.1]} 26. Rf1 {[%clk 0:01:42.6]} 26... Ke6 {[%clk 0:01:00.6]} 27.
Rc7 {[%clk 0:01:40.1]} 27... Rd7 {[%clk 0:01:00.6]} 28. Rxd7 {[%clk 0:01:37.8]}
28... Kxd7 {[%clk 0:01:01.5]} 29. Rd1+ {[%clk 0:01:37.6]} 29... Ke6 {[%clk
0:00:58.6]} 30. Kg3 {[%clk 0:01:33.9]} 30... Ra2 {[%clk 0:00:54.2]} 31. a4
{[%clk 0:01:31.9]} 31... Rb2 {[%clk 0:00:51.6]} 32. Rd3 {[%clk 0:01:30.8]} 32...
Kf6 {[%clk 0:00:51.6]} 33. Kf4 {[%clk 0:01:02.7]} 33... Ke6 {[%clk 0:00:32]} 34.
Re3+ {[%clk 0:01:00.9]} 34... Kf6 {[%clk 0:00:32.3]} 35. Rd3 {[%clk 0:01:00.7]}
35... Ke6 {[%clk 0:00:32.7]} 36. Re3+ {[%clk 0:01:01]} 36... Kf6 {[%clk
0:00:33]} 37. Rd3 {[%clk 0:01:01.6]} 1/2-1/2